bitfinex/quotes_ETHUSD_20241019
["timestamp","ask_amount","ask_price","bid_price","bid_amount"]
[1729310118345,3.77615,2648.2,2647.0,0.1944]
[1729310118511,3.77615,2648.2,2647.2,0.1944]
[1729310121936,0.8006,2648.1,2647.2,0.1944]
[1729310122419,1.258275,2648.1,2647.2,0.1944]
[1729310136185,0.8265,2648.0,2647.2,0.1944]
[1729310136752,0.8265,2647.9,2647.2,0.1944]
[1729310138573,0.8265,2647.9,2646.4,0.7444]
[1729310138787,0.8265,2647.9,2646.6,0.1944]
[1729310138957,0.8265,2647.7,2646.6,0.1944]
[1729310139469,0.8265,2647.7,2646.8,0.1944]
[1729310140483,0.8265,2647.6,2646.8,0.1944]
[1729310140693,0.8265,2647.5,2646.8,0.1944]
[1729310141199,0.8265,2647.5,2646.5,0.13]
[1729310141200,0.8265,2647.5,2646.6,0.1944]
[1729310141369,0.8265,2647.3,2646.7,0.13]
[1729310142053,0.8265,2647.2,2646.7,0.13]
[1729310142250,0.8265,2647.2,2646.6,0.1944]
[1729310147611,0.59108593,2647.1,2646.6,0.1944]
[1729310162503,0.811,2647.5,2646.6,0.1944]
[1729310162717,1.269796,2647.5,2646.6,0.1944]
[1729310166338,0.458796,2647.5,2646.6,0.1944]
[1729310170192,1.269796,2647.5,2646.6,0.1944]
[1729310171494,0.811,2647.5,2646.6,0.1944]
[1729310172828,11.699076,2647.8,2646.6,0.1944]
[1729310172829,0.7984,2647.7,2646.6,0.1944]
[1729310177524,0.460296,2647.8,2646.6,0.1944]
[1729310178559,4.237076,2647.8,2646.6,0.1944]
[1729310178728,0.8013716,2647.7,2646.6,0.1944]
[1729310180730,3.77678,2647.8,2646.6,0.1944]
[1729310181470,1.11439573,2648.1,2646.8,0.1944]
[1729310181471,1.0487241,2648.1,2646.8,0.1944]
[1729310181627,4.8250141,2648.1,2646.8,0.1944]
[1729310181822,4.8250141,2648.1,2646.9,0.47705315]
[1729310182054,0.62053369,2648.0,2647.0,0.1944]
[1729310182243,4.39704369,2648.0,2647.0,0.1944]
[1729310182665,0.62053369,2648.0,2647.0,0.1944]
[1729310182870,0.8323,2647.9,2647.0,0.1944]
[1729310183040,3.77696,2647.7,2647.0,0.1944]
[1729310183872,3.77701,2647.6,2647.0,0.1944]
[1729310184069,4.60931,2647.6,2647.0,0.1944]
[1729310186082,0.8323,2647.6,2647.0,0.1944]
[1729310186282,1.293202,2647.6,2647.0,0.1944]
[1729310188583,0.8323,2647.6,2647.0,0.1944]
[1729310196297,4.60938,2647.6,2647.0,0.1944]
[1729310197403,0.8323,2647.6,2647.0,0.1944]
[1729310197693,4.60931,2647.6,2647.0,0.1944]
[1729310203170,3.77721,2647.5,2647.0,0.1944]
[1729310203375,0.460951,2647.4,2647.0,0.1944]
[1729310220044,4.60937,2647.6,2647.0,0.1944]
[1729310221960,3.77715,2647.5,2647.0,0.1944]
[1729310222160,7.55439,2647.5,2647.0,0.1944]
[1729310222683,7.55441,2647.5,2647.0,0.1944]
[1729310222889,3.77715,2647.5,2647.0,0.1944]
[1729310223105,4.82929777,2647.4,2647.0,0.1944]
[1729310231198,3.77743,2647.3,2647.0,0.1944]
[1729310236922,4.55993,2647.3,2646.5,0.1944]
[1729310237657,1.05199777,2647.4,2646.5,0.1944]
[1729310237862,0.59105277,2647.4,2646.5,0.1944]
[1729310238066,3.77666,2647.9,2646.7,0.1944]
[1729310238225,0.59102448,2647.7,2646.9,0.1944]
[1729310238622,7.55332,2647.9,2646.9,0.1944]
[1729310238827,3.7768,2647.8,2646.9,0.1944]
[1729310239334,3.77687,2647.7,2646.9,0.1944]
[1729310239542,3.7771,2647.6,2646.9,0.1944]
[1729310239737,3.77716,2647.5,2646.9,0.1944]
[1729310241877,4.55937,2647.7,2646.9,0.1944]
[1729310241878,0.55,2647.6,2646.9,0.1944]
[1729310242085,3.7775,2647.3,2646.9,0.1944]
[1729310242389,0.45619,2647.2,2646.9,0.1944]
[1729310242547,4.2338,2647.2,2646.9,0.1944]
[1729310243089,3.77779,2647.1,2646.2,0.1944]
[1729310243288,3.77779,2647.1,2646.4,0.1944]
[1729310246321,4.56219,2647.1,2646.4,0.1944]
[1729310246621,5.441781,2647.1,2646.4,0.1944]
[1729310253620,3.77793,2647.0,2646.4,0.1944]
[1729310254737,3.77808,2646.9,2646.4,0.1944]
[1729310261962,7.5562,2646.9,2646.4,0.1944]
[1729310262775,3.77808,2646.9,2646.4,0.1944]
[1729310262982,0.377808,2646.8,2646.4,0.1944]
[1729310271259,1.201208,2646.8,2646.4,0.1944]
[1729310271406,0.377808,2646.8,2646.4,0.1944]
[1729310296996,4.155958,2646.8,2646.4,0.1944]
[1729310297488,0.377808,2646.8,2646.4,0.1944]
[1729310299167,0.96897102,2646.8,2646.4,0.1944]
[1729310300477,0.4747051,2646.7,2646.4,0.1944]
[1729310333052,3.7785,2646.6,2645.9,0.1944]
[1729310333248,3.77861,2646.5,2645.9,0.1944]
[1729310333548,0.7549,2646.5,2645.9,0.1944]
[1729310333853,0.49274113,2646.4,2645.9,0.1944]
[1729310339837,0.7549,2646.5,2645.9,0.1944]
[1729310341450,4.53349,2646.5,2645.9,0.1944]
[1729310343108,8.31216,2646.5,2645.9,0.1944]
[1729310343322,4.53349,2646.5,2645.9,0.1944]
[1729310343719,8.31219,2646.5,2645.9,0.1944]
[1729310343941,0.831219,2646.4,2645.9,0.1944]
[1729310344542,4.609949,2646.4,2645.9,0.1944]
[1729310346652,3.77886,2646.3,2645.9,0.1944]
[1729310347347,0.7549,2646.2,2645.5,0.1300925]
[1729310347548,8.31299,2646.2,2645.6,0.1944]
[1729310347850,0.831299,2646.1,2645.6,0.1944]
[1729310348056,0.7549,2646.0,2645.5,0.1300925]
[1729310348222,4.53425,2646.0,2645.5,0.1300925]
[1729310348426,3.77943,2645.9,2645.6,0.1944]
[1729310348754,3.77982,2645.7,2645.5,0.1300925]
[1729310348929,3.77968,2645.8,2645.5,0.1300925]
[1729310349107,0.377968,2645.7,2645.5,0.1300925]
[1729310349544,4.157778,2645.7,2645.5,0.1300925]
[1729310350147,0.377968,2645.7,2645.5,0.1300925]
[1729310350352,4.157708,2645.7,2645.5,0.1300925]
[1729310350925,4.157718,2645.7,2645.5,0.1300925]
[1729310351138,0.7937388,2645.6,2645.5,0.1300925]
[1729310351524,0.7937388,2645.6,2645.5,0.12897162]
[1729310356460,0.54849775,2646.1,2645.6,0.1944]
[1729310362968,7.9522337,2646.2,2645.6,0.1944]
[1729310362969,0.3941037,2646.2,2645.6,0.1944]
[1729310363280,3.84420697,2646.6,2645.6,0.1944]
[1729310363281,3.77871,2646.4,2645.6,0.1944]
[1729310363482,3.77888,2646.3,2645.6,0.1944]
[1729310366158,3.77859,2646.5,2645.6,0.1944]
[1729310367206,3.77875,2646.4,2645.6,0.1944]
[1729310371166,3.77883,2646.4,2645.6,0.1944]
[1729310375115,3.77879,2646.4,2645.6,0.1944]
[1729310376114,7.55761,2646.4,2645.6,0.1944]
[1729310376632,7.55761,2646.4,2646.3,0.98693011]
[1729310376790,4.80939085,2646.4,2646.3,0.98693011]
[1729310378113,4.80939085,2646.4,2646.3,1.97386022]
[1729310378315,1.03060085,2646.4,2646.3,1.97386022]
[1729310378621,7.55725,2646.5,2646.3,1.97386022]
[1729310378778,3.77859,2646.5,2646.4,1.97386022]
[1729310378975,4.32859,2646.5,2646.4,1.97386022]
[1729310389858,4.32859,2646.5,2646.4,0.98693011]
[1729310390019,5.56849451,2646.5,2646.4,0.98693011]
[1729310390838,5.56849451,2646.5,2646.4,1.97386022]
[1729310394617,6.15979637,2646.5,2646.4,1.97386022]
[1729310395857,6.15979637,2646.5,2646.4,0.98693011]
[1729310396066,6.15979637,2646.5,2646.4,1.97386022]
[1729310396220,1.83120637,2646.5,2646.4,1.97386022]
[1729310396421,0.59130186,2646.5,2646.4,1.97386022]
[1729310399061,3.77851,2646.6,2646.4,1.97386022]
[1729310399265,3.77851,2646.6,2646.5,0.98693011]
[1729310400352,4.2530651,2646.7,2646.5,0.98693011]
[1729310400550,4.2530651,2646.7,2646.6,0.98693011]
[1729310400750,4.8030651,2646.7,2646.6,0.98693011]
[1729310401578,4.2530651,2646.7,2646.6,0.98693011]
[1729310401777,3.77819,2646.8,2646.6,0.98693011]
[1729310402057,3.77819,2646.8,2646.7,0.98693011]
[1729310406192,3.77799,2647.0,2646.7,0.98693011]
[1729310406406,4.37286443,2647.2,2646.9,1.97386022]
[1729310406407,0.59126443,2647.2,2646.9,1.97386022]
[1729310406604,0.59126443,2647.2,2647.1,1.97386022]
[1729310406769,4.89044164,2647.2,2647.1,0.98693011]
[1729310407311,1.11287164,2647.2,2647.1,1.97386022]
[1729310408115,4.89044164,2647.2,2647.1,1.97386022]
[1729310408468,1.11287164,2647.2,2647.1,1.97386022]
[1729310408669,1.11287164,2647.2,2647.1,3.85396022]
[1729310408670,0.59126443,2647.2,2647.1,3.85396022]
[1729310409494,0.59126443,2647.2,2647.1,4.04836022]
[1729310412699,3.77683,2647.8,2647.1,3.85396022]
[1729310413011,3.77683,2647.8,2647.7,0.98693011]
[1729310413519,4.36784173,2647.8,2647.7,0.98693011]
[1729310413716,5.2604389,2647.8,2647.7,0.98693011]
[1729310415299,4.66942717,2647.8,2647.7,0.98693011]
[1729310419493,5.26044565,2647.8,2647.7,0.98693011]
[1729310428367,3.77637,2648.1,2647.7,1.97386022]
[1729310428569,4.56017,2648.2,2648.0,1.97386022]
[1729310428756,5.11014,2648.2,2648.1,0.98693011]
[1729310429087,6.013752,2648.2,2648.1,0.98693011]
[1729310430241,5.229752,2648.2,2648.1,0.98693011]
[1729310431582,0.903612,2648.2,2648.1,0.98693011]
[1729310431756,3.77601,2648.3,2648.1,0.98693011]
[1729310431962,3.77601,2648.3,2648.2,0.98693011]
[1729310432833,3.77689,2647.7,2647.2,0.1944]
[1729310433123,3.77689,2647.7,2647.6,0.98693011]
[1729310433993,4.56812,2647.8,2647.6,0.98693011]
[1729310434191,5.024928,2647.8,2647.7,0.98693011]
[1729310438319,4.56812,2647.8,2647.7,0.98693011]
[1729310445078,3.77717,2647.5,2647.2,0.1944]
[1729310445289,3.77717,2647.5,2647.4,0.98693011]
[1729310445290,4.54677,2647.5,2647.4,0.98693011]
[1729310445495,4.54717,2647.2,2647.1,1.8801]
[1729310445780,5.09717,2647.2,2647.1,1.8801]
[1729310446960,5.09717,2647.2,2647.1,2.86703011]
[1729310462304,3.77743,2647.3,2647.1,2.86703011]
[1729310462509,3.77729,2647.4,2647.2,1.97386022]
[1729310462707,3.77729,2647.4,2647.3,0.98693011]
[1729310463147,3.77725,2647.5,2647.3,0.98693011]
[1729310463316,3.77701,2647.6,2647.4,0.98693011]
[1729310463655,3.77701,2647.6,2647.5,0.98693011]
[1729310464214,3.77677,2647.8,2647.5,0.98693011]
[1729310464454,3.77677,2647.8,2647.3,0.1944]
[1729310464455,3.77677,2647.8,2647.7,0.98693011]
[1729310464717,4.53866739,2647.8,2647.7,0.98693011]
[1729310465744,5.08866739,2647.8,2647.7,0.98693011]
[1729310468639,4.32677,2647.8,2647.7,0.98693011]
[1729310478893,3.77658,2647.9,2647.7,0.98693011]
[1729310479200,3.77658,2647.9,2647.8,0.98693011]
[1729310482651,3.77672,2647.8,2647.7,0.98693011]
[1729310482855,4.57462,2647.8,2647.7,0.98693011]
[1729310484057,6.392386,2647.8,2647.7,0.98693011]
[1729310486893,5.12462,2647.8,2647.7,0.98693011]
[1729310487095,4.32672,2647.8,2647.7,0.98693011]
[1729310489269,4.91774899,2647.8,2647.7,0.98693011]
[1729310500576,0.59102899,2647.8,2647.7,0.98693011]
[1729310500778,0.59102899,2647.8,2647.7,1.18133011]
[1729310500983,0.59102899,2647.8,2647.7,2.16826022]
[1729310501289,0.59102899,2647.8,2647.7,2.38508624]
[1729310501622,0.59102899,2647.8,2647.7,1.39815613]
[1729310502388,0.59102899,2647.8,2647.7,0.98693011]
[1729310505556,0.59102899,2647.8,2647.7,1.18133011]
[1729310511246,3.77632,2648.1,2647.7,1.18133011]
[1729310511545,3.77632,2648.1,2648.0,0.98693011]
[1729310516669,4.57232,2648.1,2648.0,0.98693011]
[1729310519996,0.796,2648.1,2648.0,0.98693011]
[1729310520193,7.55238,2648.2,2648.0,0.98693011]
[1729310520399,3.77615,2648.2,2648.0,0.98693011]
[1729310522070,3.77615,2648.2,2648.1,0.98693011]
[1729310522253,4.32615,2648.2,2648.0,0.98693011]
[1729310522591,4.32615,2648.2,2648.1,0.98693011]
[1729310523445,3.77603,2648.3,2648.1,0.98693011]
[1729310523643,3.77594,2648.4,2648.2,0.98693011]
[1729310523875,0.55,2648.4,2648.3,0.98693011]
[1729310524188,4.32586,2648.4,2648.3,0.98693011]
[1729310524490,0.55,2648.4,2648.3,0.98693011]
[1729310524686,8.34757,2648.5,2648.3,0.98693011]
[1729310524847,5.12174,2648.5,2648.4,0.98693011]
[1729310525863,0.55,2648.5,2648.4,0.98693011]
[1729310526377,4.32572,2648.5,2648.4,0.98693011]
[1729310528165,0.55,2648.5,2648.4,0.98693011]
[1729310529086,0.59093164,2648.6,2648.4,0.98693011]
[1729310529298,0.59093164,2648.6,2648.5,1.18133011]
[1729310531489,0.59093164,2648.6,2648.5,2.16826022]
[1729310531699,0.59093164,2648.6,2648.5,1.39815613]
[1729310537660,0.59093164,2648.6,2647.4,0.1944]
[1729310537857,4.36654164,2648.6,2648.5,0.98693011]
[1729310538299,0.59093164,2648.6,2648.5,0.98693011]
[1729310542267,0.59093164,2648.6,2648.5,1.18133011]
[1729310546176,3.77523,2648.9,2648.5,1.18133011]
[1729310546374,3.77523,2648.9,2648.8,0.98693011]
[1729310547201,0.55,2649.0,2648.8,0.98693011]
[1729310547401,4.54554,2649.1,2648.9,0.98693011]
[1729310547584,4.54554,2649.1,2649.0,0.98693011]
[1729310547585,5.09554,2649.1,2649.0,0.98693011]
[1729310547990,4.32494,2649.1,2649.0,0.98693011]
[1729310558863,4.54534,2649.2,2649.0,0.98693011]
[1729310559174,4.54534,2649.2,2649.1,0.98693011]
[1729310566462,4.54534,2649.2,2648.4,0.1944]
[1729310566463,3.77568,2648.6,2648.4,0.1944]
[1729310566679,3.77568,2648.6,2648.5,0.98693011]
[1729310566828,4.55094,2648.7,2648.5,0.98693011]
[1729310567868,4.55094,2648.7,2648.6,0.98693011]
[1729310571169,0.7755,2648.7,2648.6,0.98693011]
[1729310571369,4.55093,2648.7,2648.6,0.98693011]
[1729310572354,0.7755,2648.7,2648.6,0.98693011]
[1729310572681,3.77543,2648.7,2648.6,0.98693011]
[1729310572850,7.55067,2648.8,2648.6,0.98693011]
[1729310573050,3.77529,2648.8,2648.7,0.98693011]
[1729310574864,3.77517,2648.9,2648.7,1.18133011]
[1729310575082,4.32517,2648.9,2648.8,0.98693011]
[1729310590694,5.12677,2648.9,2648.8,0.98693011]
[1729310592738,3.77515,2648.9,2648.8,0.98693011]
[1729310593037,4.53888,2648.6,2648.5,0.98693011]
[1729310595012,0.7632,2648.6,2648.5,0.98693011]
[1729310595327,4.53877,2648.6,2648.5,0.98693011]
[1729310597259,3.77615,2648.2,2647.3,0.1944]
[1729310597414,3.77615,2648.2,2648.1,0.98693011]
[1729310597855,0.7632,2648.3,2647.6,0.1944]
[1729310598058,3.77665,2647.9,2647.6,0.1944]
[1729310598649,3.77665,2647.9,2647.8,0.98693011]
[1729310598928,0.7632,2648.0,2647.8,0.98693011]
[1729310599123,0.7632,2648.0,2647.9,0.98693011]
[1729310599733,4.53963,2648.0,2647.9,0.98693011]
[1729310600869,3.77629,2648.1,2647.9,0.98693011]
[1729310601026,3.77599,2648.4,2648.0,1.97386022]
[1729310601230,5.08919,2648.4,2648.3,0.98693011]
[1729310605865,3.77618,2648.2,2647.9,0.1944]
[1729310606361,8.86519,2648.4,2647.9,0.1944]
[1729310606520,3.77611,2648.3,2647.9,0.1944]
[1729310606725,3.77631,2648.1,2647.9,0.1944]
[1729310607157,3.77479974,2648.1,2647.9,0.1944]
[1729310608361,3.77643,2648.0,2647.9,0.1944]
[1729310608867,3.77658,2647.9,2647.2,0.1944]
[1729310611332,4.53799974,2648.1,2647.2,0.1944]
[1729310611530,3.77656,2648.0,2647.3,0.1944]
[1729310612731,3.77659,2647.9,2647.3,0.1944]
[1729310612930,7.55325,2647.9,2647.3,0.1944]
[1729310613345,7.55324,2647.9,2647.3,0.1944]
[1729310613581,3.77659,2647.9,2647.3,0.422595]
[1729310613763,3.7765,2648.0,2647.4,0.1944]
[1729310614381,3.77661,2647.9,2647.4,0.1944]
[1729310614609,3.77652,2648.0,2647.4,0.1944]
[1729310614974,3.77658,2647.9,2647.4,0.1944]
[1729310618505,4.53958,2648.1,2647.4,0.1944]
[1729310618708,3.77647,2648.0,2647.4,0.1944]
[1729310619627,3.77638,2648.1,2647.4,0.1944]
[1729310620495,7.55276,2648.1,2647.4,0.1944]
[1729310620729,7.55278,2648.1,2647.4,0.1944]
[1729310621099,3.77644,2648.0,2647.4,0.1944]
[1729310623143,3.77638,2648.1,2647.4,0.1944]
[1729310623726,7.5528,2648.1,2647.4,0.1944]
[1729310623925,3.77644,2648.0,2647.4,0.1944]
[1729310624627,3.77629,2648.1,2647.4,0.1944]
[1729310625286,7.55267,2648.1,2647.4,0.1944]
[1729310625481,3.77629,2648.1,2647.4,0.1944]
[1729310626489,7.5527,2648.1,2647.4,0.1944]
[1729310626687,3.77629,2648.1,2647.4,0.1944]
[1729310627099,3.77645,2648.0,2647.4,0.1944]
[1729310627321,3.77629,2648.1,2647.4,0.1944]
[1729310628612,7.55266,2648.1,2647.4,0.1944]
[1729310630298,3.77653,2648.0,2647.4,0.1944]
[1729310633947,4.3263,2648.1,2647.4,0.1944]
[1729310635448,3.77643,2648.0,2647.4,0.1944]
[1729310636905,0.55,2648.1,2647.4,0.1944]
[1729310637133,4.32629,2648.1,2647.4,0.1944]
[1729310640938,3.77616,2648.2,2647.5,0.07553834]
[1729310641250,0.59090115,2648.3,2647.6,0.1944]
[1729310641757,0.59090115,2648.3,2647.8,0.1944]
[1729310643763,0.59090115,2648.3,2647.9,0.04338531]
[1729310643962,0.59090115,2648.3,2648.0,0.1944]
[1729310644699,3.7753,2648.8,2648.0,0.1944]
[1729310644876,4.60607,2648.9,2648.0,0.1944]
[1729310645194,3.77532,2648.8,2648.0,0.1944]
[1729310645401,8.38135,2648.9,2648.0,0.1944]
[1729310645887,3.77533,2648.8,2648.0,0.1944]
[1729310647094,3.77527,2648.9,2648.1,0.07551659]
[1729310647319,3.77527,2648.9,2648.2,0.1944]
[1729310647613,0.59075735,2648.7,2648.2,0.1944]
[1729310647815,4.32502,2649.0,2648.2,0.1944]
[1729310648311,3.77502,2649.0,2648.2,0.1944]
[1729310648607,3.77492,2649.1,2647.6,0.1944]
[1729310648812,5.15332974,2649.3,2647.6,0.1944]
[1729310648813,4.32472,2649.2,2647.8,0.1944]
[1729310649174,4.32472,2649.2,2647.9,0.2824287]
[1729310649397,4.32472,2649.2,2648.0,0.1944]
[1729310650074,3.77488,2649.1,2648.0,0.1944]
[1729310651414,4.3248,2649.2,2648.0,0.1944]
[1729310651717,3.77487,2649.1,2648.0,0.1944]
[1729310656685,3.77487,2649.1,2648.2,0.1944]
[1729310656886,4.32252974,2649.3,2648.4,0.1944]
[1729310657414,0.8308,2649.5,2648.4,0.1944]
[1729310657415,4.60515,2649.5,2648.4,0.1944]
[1729310657725,3.77435,2649.5,2648.4,0.1944]
[1729310658018,0.39372786,2649.4,2648.4,0.1944]
[1729310658782,7.54874,2649.5,2648.4,0.1944]
[1729310659291,3.77435,2649.5,2648.4,0.1944]
[1729310659624,4.36495019,2649.6,2648.4,0.1944]
[1729310659913,3.77434,2649.5,2648.4,0.1944]
[1729310660115,3.77445,2649.4,2648.4,0.1944]
[1729310660341,0.8012,2649.3,2648.4,0.1944]
[1729310660626,3.77491,2649.1,2648.4,0.1944]
[1729310660916,3.77507,2649.0,2648.4,0.1944]
[1729310662606,3.77486,2649.1,2648.4,0.1944]
[1729310662810,7.54984,2649.1,2648.4,0.1944]
[1729310663521,7.54982,2649.1,2648.4,0.1944]
[1729310664117,3.77486,2649.1,2648.4,0.1944]
[1729310667739,3.77481,2649.2,2648.4,0.1944]
[1729310667930,3.77494,2649.1,2648.4,0.1944]
[1729310670752,4.610022,2649.1,2648.4,0.1944]
[1729310674664,3.775,2649.0,2648.4,0.1944]
[1729310676352,4.610022,2649.1,2648.4,0.1944]
[1729310676519,3.77509,2649.0,2648.4,0.1944]
[1729310677955,7.55022,2649.0,2648.4,0.1944]
[1729310678125,0.8385302,2648.9,2648.4,0.1944]
[1729310679153,3.77515,2648.9,2648.4,0.1944]
[1729310679365,7.55022,2649.0,2648.4,0.1944]
[1729310680256,3.77509,2649.0,2648.4,0.1944]
[1729310681964,7.55017,2649.0,2648.4,0.1944]
[1729310682147,3.77508,2649.0,2648.4,0.1944]
[1729310682347,0.377508,2648.9,2648.4,0.1944]
[1729310691784,4.152688,2648.9,2648.4,0.1944]
[1729310692618,3.77555,2648.7,2648.4,0.1944]
[1729310693883,3.77529,2648.8,2648.4,0.1944]
[1729310694599,7.55067,2648.8,2648.4,0.1944]
[1729310694926,0.7928178,2648.7,2648.4,0.1944]
[1729310695115,4.5682678,2648.7,2648.4,0.1944]
[1729310695697,4.5494,2649.0,2648.4,0.1944]
[1729310695883,3.7751,2649.0,2648.4,0.1944]
[1729310698032,3.77481,2649.2,2648.4,0.1944]
[1729310698630,3.77489,2649.1,2648.4,0.1944]
[1729310699423,3.77481,2649.2,2648.4,0.1944]
[1729310699634,4.229721,2649.2,2648.4,0.1944]
[1729310701125,3.77486,2649.1,2648.4,0.1944]
[1729310702030,4.229721,2649.2,2648.4,0.1944]
[1729310702620,8.004551,2649.2,2648.4,0.1944]
[1729310703329,4.229721,2649.2,2648.4,0.1944]
[1729310704522,8.004521,2649.2,2648.4,0.1944]
[1729310705726,3.77487,2649.1,2648.4,0.1944]
[1729310705930,4.229711,2649.2,2648.4,0.1944]
[1729310708326,0.59067739,2649.1,2648.4,0.1944]
[1729310710941,3.77508,2649.0,2648.4,0.1944]
[1729310714877,4.607498,2649.0,2648.4,0.1944]
[1729310715152,3.77525,2648.9,2648.4,0.1944]
[1729310715623,3.77531,2648.8,2648.4,0.1944]
[1729310716069,3.7752,2648.9,2648.4,0.1944]
[1729310717096,8.382638,2649.0,2648.4,0.1944]
[1729310717259,4.607498,2649.0,2648.4,0.1944]
[1729310717660,8.382638,2649.0,2648.4,0.1944]
[1729310717964,4.607498,2649.0,2648.4,0.1944]
[1729310718188,3.77526,2648.9,2648.4,0.1944]
[1729310719002,3.7753,2648.8,2648.4,0.1944]
[1729310725106,3.77565,2648.6,2647.8,0.1944]
[1729310725307,3.77557,2648.7,2647.8,0.1944]
[1729310725479,3.77571,2648.6,2647.8,0.1944]
[1729310726086,4.53918,2648.5,2647.8,0.1944]
[1729310726409,3.77595,2648.4,2647.8,0.1944]
[1729310727696,3.77578,2648.5,2647.8,0.1944]
[1729310728702,7.55158,2648.5,2647.8,0.1944]
[1729310729607,3.77593,2648.4,2647.8,0.1944]
[1729310731683,4.53918,2648.5,2647.8,0.1944]
[1729310731889,8.31502,2648.5,2647.8,0.1944]
[1729310732511,3.77587,2648.4,2647.8,0.1944]
[1729310734274,0.7634,2648.5,2647.8,0.1944]
[1729310734498,3.77576,2648.5,2647.8,0.1944]
[1729310736116,3.77588,2648.4,2647.8,0.1944]
[1729310738590,3.77566,2648.6,2647.8,0.1944]
[1729310738912,4.236036,2648.6,2647.8,0.1944]
[1729310739122,3.77581,2648.5,2647.8,0.1944]
[1729310739984,3.77586,2648.4,2647.8,0.1944]
[1729310741119,7.55182,2648.4,2647.8,0.1944]
[1729310741359,3.77586,2648.4,2647.8,0.1944]
[1729310741481,3.77604,2648.3,2647.8,0.1944]
[1729310741823,3.77616,2648.2,2647.8,0.1944]
[1729310742021,7.55242,2648.2,2647.8,0.1944]
[1729310742326,3.77629,2648.1,2647.8,0.1944]
[1729310742484,3.77651,2648.0,2647.3,0.228195]
[1729310742686,3.77658,2647.9,2647.4,0.1944]
[1729310742928,7.55328,2647.9,2647.4,0.1944]
[1729310743226,3.7766,2647.9,2647.4,0.1944]
[1729310743429,3.77679,2647.8,2647.4,0.1944]
[1729310743626,4.15426,2647.9,2647.4,0.1944]
[1729310743954,3.77672,2647.8,2647.4,0.1944]
[1729310744299,7.93095,2647.9,2647.4,0.1944]
[1729310744496,4.15426,2647.9,2647.4,0.1944]
[1729310744697,3.77673,2647.8,2647.4,0.1944]
[1729310747610,4.15427,2647.9,2647.4,0.1944]
[1729310750305,0.37766,2647.9,2647.4,0.1944]
[1729310750501,3.77657,2648.0,2647.4,0.1944]
[1729310750742,3.77595,2648.4,2647.6,0.1944]
[1729310751051,3.77601,2648.3,2647.6,0.1944]
[1729310751344,3.77588,2648.4,2647.6,0.1944]
[1729310752750,7.55186,2648.4,2647.6,0.1944]
[1729310753156,3.77588,2648.4,2647.6,0.1944]
[1729310756410,3.77603,2648.3,2647.6,0.1944]
[1729310757354,4.32586,2648.5,2647.6,0.1944]
[1729310757537,4.8276856,2648.5,2647.6,0.1944]
[1729310757715,3.77592,2648.4,2647.6,0.1944]
[1729310764655,0.55,2648.5,2647.6,0.1944]
[1729310764958,3.77626,2648.2,2647.6,0.1944]
[1729310765453,4.609716,2648.2,2647.6,0.1944]
[1729310769455,0.833456,2648.2,2647.6,0.1944]
[1729310769663,3.7763,2648.1,2647.6,0.1944]
[1729310770454,0.833456,2648.2,2647.6,0.1944]
[1729310770640,3.7763,2648.1,2647.6,0.1944]
[1729310772355,4.609606,2648.2,2647.6,0.1944]
[1729310772662,3.77615,2648.2,2647.6,0.1944]
[1729310775035,3.77587,2648.4,2647.6,0.1944]
[1729310775253,3.77573,2648.5,2647.7,0.07552716]
[1729310775451,3.77573,2648.5,2647.8,0.1944]
[1729310778458,7.55154,2648.5,2647.8,0.1944]
[1729310778656,3.77573,2648.5,2647.8,0.1944]
[1729310781177,7.55153,2648.5,2647.8,0.1944]
[1729310781684,3.77573,2648.5,2647.8,0.1944]
[1729310785573,7.55159,2648.5,2647.8,0.1944]
[1729310785910,3.77573,2648.5,2647.8,0.1944]
[1729310791676,1.35860621,2648.8,2647.8,0.1944]
[1729310791906,0.59090621,2648.8,2648.0,0.1944]
[1729310792213,4.36626621,2648.8,2648.0,0.1944]
[1729310792410,3.77551,2648.7,2648.0,0.1944]
[1729310796112,0.59090621,2648.8,2648.0,0.1944]
[1729310800687,0.59090621,2648.8,2648.2,0.1944]
[1729310801292,0.59090621,2648.8,2648.4,0.1944]
[1729310805442,3.77486,2649.1,2648.4,0.1944]
[1729310808532,3.77468,2649.3,2648.4,0.1944]
[1729310808733,4.34000833,2649.3,2648.4,0.1944]
[1729310809410,3.77473,2649.2,2648.4,0.1944]
[1729310815645,0.56532833,2649.3,2648.4,0.1944]
[1729310815646,4.33990833,2649.3,2648.4,0.1944]
[1729310817748,3.77472,2649.2,2648.4,0.1944]
[1729310818839,4.33990833,2649.3,2648.4,0.1944]
[1729310822083,0.88856883,2649.2,2648.4,0.1944]
[1729310822289,3.77481,2649.2,2648.4,0.1944]
[1729310822653,7.54965,2649.2,2648.4,0.1944]
[1729310822864,3.77481,2649.2,2648.4,0.1944]
[1729310823287,3.77487,2649.1,2648.4,0.1944]
[1729310823591,7.54956,2649.2,2648.4,0.1944]
[1729310823801,8.436646,2649.2,2648.4,0.1944]
[1729310823952,3.77487,2649.1,2648.4,0.1944]
[1729310825895,0.887086,2649.2,2648.4,0.1944]
[1729310826112,4.661816,2649.2,2648.4,0.1944]
[1729310827900,3.77487,2649.1,2648.4,0.1944]
[1729310828097,0.887086,2649.2,2648.4,0.1944]
[1729310828714,4.661856,2649.2,2648.4,0.1944]
[1729310839009,0.887086,2649.2,2648.4,0.1944]
[1729310839184,3.77472,2649.2,2648.4,0.1944]
[1729310840178,7.54952,2649.2,2648.4,0.1944]
[1729310840380,4.59636,2649.1,2648.4,0.1944]
[1729310841418,3.77501,2649.0,2648.4,0.1944]
[1729310842285,0.8214,2649.1,2648.4,0.1944]
[1729310842489,5.488495,2649.1,2648.4,0.1944]
[1729310844155,4.32469,2649.3,2648.4,0.1944]
[1729310844430,0.55,2649.3,2648.4,0.1944]